[Event "Titled Tuesday Blitz August 09 Early 2022"]
[White "Ternault, Mathieu"]
[Black "Kashefi, Amir Hosein"]
[WhiteFideId "20641532"]
[BlackFideId "12557935"]
[WhiteElo "2249"]
[BlackElo "1962"]
[Result "0-1"]
[Round "07"]
[TimeControl "180+1"]
[Date "2022.08.09"]
[WhiteClock "0:00:05"]
[BlackClock "0:00:45"]

1. e4 {[%clk 0:03:00]}  c6 {[%clk 0:02:59]} 2. d4 {[%clk 0:02:58]}  d5 {[%clk 0:03:00]} 3. Nc3 {[%clk 0:02:58]}  dxe4 {[%clk 0:03:00]} 4. Nxe4 {[%clk 0:02:59]}  Nd7 {[%clk 0:02:59]} 5. Nf3 {[%clk 0:02:56]}  Ngf6 {[%clk 0:02:59]} 6. Neg5 {[%clk 0:02:41]}  e6 {[%clk 0:02:58]} 7. Bc4 {[%clk 0:02:41]}  h6 {[%clk 0:02:49]} 8. Nh3 {[%clk 0:02:39]}  Bd6 {[%clk 0:02:47]} 9. O-O {[%clk 0:02:38]}  Qc7 {[%clk 0:02:46]} 10. Re1 {[%clk 0:02:35]}  O-O {[%clk 0:02:46]} 11. Qe2 {[%clk 0:02:32]}  c5 {[%clk 0:02:41]} 12. dxc5 {[%clk 0:02:16]}  Nxc5 {[%clk 0:02:40]} 13. Ne5 {[%clk 0:02:08]}  a6 {[%clk 0:02:24]} 14. a4 {[%clk 0:02:06]}  b6 {[%clk 0:02:23]} 15. Ng4 {[%clk 0:01:49]}  Nce4 {[%clk 0:02:05]} 16. Bd3 {[%clk 0:01:43]}  Bb7 {[%clk 0:02:00]} 17. Be3 {[%clk 0:01:20]}  Nxg4 {[%clk 0:01:58]} 18. Qxg4 {[%clk 0:01:21]}  Bxh2+ {[%clk 0:01:58]} 19. Kh1 {[%clk 0:01:21]}  Nf6 {[%clk 0:01:58]} 20. Qh4 {[%clk 0:01:18]}  Be5 {[%clk 0:01:45]} 21. c3 {[%clk 0:01:11]}  Rad8 {[%clk 0:01:43]} 22. Bf1 {[%clk 0:01:04]}  Nh7 {[%clk 0:01:26]} 23. a5 {[%clk 0:00:32]}  bxa5 {[%clk 0:01:24]} 24. Ra4 {[%clk 0:00:32]}  Bf6 {[%clk 0:01:23]} 25. Qh5 {[%clk 0:00:31]}  Rd5 {[%clk 0:01:20]} 26. Qe2 {[%clk 0:00:25]}  Rfd8 {[%clk 0:01:19]} 27. Rg4 {[%clk 0:00:25]}  Kf8 {[%clk 0:01:14]} 28. Nf4 {[%clk 0:00:25]}  Rg5 {[%clk 0:01:05]} 29. Kg1 {[%clk 0:00:22]}  Rxg4 {[%clk 0:01:04]} 30. Qxg4 {[%clk 0:00:22]}  Ng5 {[%clk 0:01:01]} 31. b4 {[%clk 0:00:18]}  Bxc3 {[%clk 0:00:58]} 32. Bc5+ {[%clk 0:00:18]}  Kg8 {[%clk 0:00:54]} 33. Re3 {[%clk 0:00:12]}  axb4 {[%clk 0:00:53]} 34. Ba7 {[%clk 0:00:09]}  Bxg2 {[%clk 0:00:52]} 35. Rg3 {[%clk 0:00:06]}  Bxf1 {[%clk 0:00:51]} 36. Nh5 {[%clk 0:00:05]}  Qxa7 {[%clk 0:00:45]} 0-1


[Site "https://www.chess.com"]

[Event "Titled Tuesday Blitz August 09 Early 2022"]
[White "Vagman, Roy"]
[Black "Volkov, Maksim"]
[WhiteFideId "2828995"]
[BlackFideId "54123070"]
[WhiteElo "1956"]
[BlackElo "2155"]
[Result "0-1"]
[Round "07"]
[TimeControl "180+1"]
[Date "2022.08.09"]
[WhiteClock "0:00:03"]
[BlackClock "0:00:07"]

1. Nf3 {[%clk 0:03:00]}  d5 {[%clk 0:03:00]} 2. g3 {[%clk 0:02:54]}  Bg4 {[%clk 0:03:00]} 3. Bg2 {[%clk 0:02:54]}  c6 {[%clk 0:02:58]} 4. O-O {[%clk 0:02:53]}  e6 {[%clk 0:02:59]} 5. d4 {[%clk 0:02:52]}  Nf6 {[%clk 0:02:58]} 6. Ne5 {[%clk 0:02:48]}  Bf5 {[%clk 0:02:57]} 7. c4 {[%clk 0:02:43]}  Nbd7 {[%clk 0:02:56]} 8. Nxd7 {[%clk 0:02:40]}  Qxd7 {[%clk 0:02:55]} 9. Nc3 {[%clk 0:02:40]}  dxc4 {[%clk 0:02:53]} 10. e4 {[%clk 0:02:40]}  Bg6 {[%clk 0:02:53]} 11. Qe2 {[%clk 0:02:30]}  b5 {[%clk 0:02:49]} 12. e5 {[%clk 0:02:28]}  Nd5 {[%clk 0:02:47]} 13. Ne4 {[%clk 0:02:29]}  Be7 {[%clk 0:02:44]} 14. b3 {[%clk 0:02:08]}  c3 {[%clk 0:02:34]} 15. a4 {[%clk 0:02:02]}  b4 {[%clk 0:02:33]} 16. h4 {[%clk 0:01:45]}  h6 {[%clk 0:02:30]} 17. h5 {[%clk 0:01:44]}  Bf5 {[%clk 0:02:30]} 18. g4 {[%clk 0:01:42]}  Bh7 {[%clk 0:02:30]} 19. f4 {[%clk 0:01:40]}  Nc7 {[%clk 0:02:20]} 20. Be3 {[%clk 0:01:40]}  Nd5 {[%clk 0:02:16]} 21. Rad1 {[%clk 0:01:36]}  Kd8 {[%clk 0:02:08]} 22. Nc5 {[%clk 0:01:24]}  Bxc5 {[%clk 0:01:51]} 23. dxc5 {[%clk 0:01:25]}  Kc7 {[%clk 0:01:47]} 24. Qa6 {[%clk 0:01:20]}  Qc8 {[%clk 0:01:39]} 25. Qa5+ {[%clk 0:01:19]}  Kd7 {[%clk 0:01:37]} 26. Qxb4 {[%clk 0:01:18]}  c2 {[%clk 0:01:35]} 27. Rd2 {[%clk 0:01:15]}  Rb8 {[%clk 0:01:31]} 28. Qc4 {[%clk 0:01:12]}  Ke7 {[%clk 0:01:30]} 29. Bxd5 {[%clk 0:01:11]}  cxd5 {[%clk 0:01:30]} 30. Qc3 {[%clk 0:01:07]}  Kd7 {[%clk 0:00:57]} 31. f5 {[%clk 0:01:05]}  Kc6 {[%clk 0:00:54]} 32. b4 {[%clk 0:01:01]}  exf5 {[%clk 0:00:52]} 33. b5+ {[%clk 0:01:02]}  Kd7 {[%clk 0:00:45]} 34. Rxd5+ {[%clk 0:01:01]}  Ke8 {[%clk 0:00:43]} 35. e6 {[%clk 0:00:54]}  fxe6 {[%clk 0:00:35]} 36. Rd6 {[%clk 0:00:35]}  Kf7 {[%clk 0:00:34]} 37. gxf5 {[%clk 0:00:29]}  Bxf5 {[%clk 0:00:33]} 38. Qxc2 {[%clk 0:00:29]}  Rd8 {[%clk 0:00:31]} 39. Qd2 {[%clk 0:00:23]}  Qc7 {[%clk 0:00:22]} 40. Qd4 {[%clk 0:00:13]}  Qe7 {[%clk 0:00:21]} 41. Qe5 {[%clk 0:00:12]}  Qh4 {[%clk 0:00:16]} 42. Rxf5+ {[%clk 0:00:09]}  exf5 {[%clk 0:00:17]} 43. Qe6+ {[%clk 0:00:07]}  Kf8 {[%clk 0:00:17]} 44. Qxf5+ {[%clk 0:00:07]}  Kg8 {[%clk 0:00:18]} 45. Qd5+ {[%clk 0:00:08]}  Kh8 {[%clk 0:00:18]} 46. Rxd8+ {[%clk 0:00:07]}  Rxd8 {[%clk 0:00:19]} 47. Qf3 {[%clk 0:00:07]}  Qxa4 {[%clk 0:00:17]} 48. c6 {[%clk 0:00:05]}  Qxb5 {[%clk 0:00:17]} 49. Bxa7 {[%clk 0:00:05]}  Qb1+ {[%clk 0:00:15]} 50. Kg2 {[%clk 0:00:05]}  Qa2+ {[%clk 0:00:15]} 51. Bf2 {[%clk 0:00:05]}  Qc4 {[%clk 0:00:15]} 52. Kh2 {[%clk 0:00:03]}  Rc8 {[%clk 0:00:15]} 53. c7 {[%clk 0:00:02]}  Qxc7+ {[%clk 0:00:15]} 54. Bg3 {[%clk 0:00:02]}  Qc2+ {[%clk 0:00:15]} 55. Kh3 {[%clk 0:00:03]}  Qc6 {[%clk 0:00:15]} 56. Qf4 {[%clk 0:00:03]}  Qe6+ {[%clk 0:00:15]} 57. Kh2 {[%clk 0:00:03]}  Rc2+ {[%clk 0:00:14]} 58. Bf2 {[%clk 0:00:03]}  Qd5 {[%clk 0:00:10]} 59. Qf8+ {[%clk 0:00:03]}  Kh7 {[%clk 0:00:11]} 60. Qf4 {[%clk 0:00:04]}  Qxh5+ {[%clk 0:00:10]} 61. Kg1 {[%clk 0:00:04]}  Qg6+ {[%clk 0:00:09]} 62. Kh2 {[%clk 0:00:03]}  Re2 {[%clk 0:00:07]} 63. Qf3 {[%clk 0:00:04]}  Qe4 {[%clk 0:00:07]} 64. Qf7 {[%clk 0:00:03]}  Qe5+ {[%clk 0:00:06]} 65. Kg1 {[%clk 0:00:03]}  Qf6 {[%clk 0:00:06]} 66. Qc4 {[%clk 0:00:02]}  Qxf2+ {[%clk 0:00:06]} 67. Kh1 {[%clk 0:00:03]}  Qg2# {[%clk 0:00:07]} 0-1


[Site "https://www.chess.com"]

[Event "Titled Tuesday Blitz August 09 Early 2022"]
[White "Vasquez Schroeder, Rodrigo"]
[Black "Pulpan, Jakub"]
[WhiteFideId "3400042"]
[BlackFideId "302759"]
[WhiteElo "2567"]
[BlackElo "2451"]
[Result "1-0"]
[Round "07"]
[TimeControl "180+1"]
[Date "2022.08.09"]
[WhiteClock "0:01:02"]
[BlackClock "0:00:10"]

1. e4 {[%clk 0:03:00]}  c5 {[%clk 0:02:45]} 2. Nf3 {[%clk 0:03:00]}  Nc6 {[%clk 0:02:45]} 3. Bb5 {[%clk 0:02:58]}  g6 {[%clk 0:02:46]} 4. c3 {[%clk 0:02:58]}  Bg7 {[%clk 0:02:44]} 5. d4 {[%clk 0:02:56]}  cxd4 {[%clk 0:02:45]} 6. cxd4 {[%clk 0:02:57]}  a6 {[%clk 0:02:45]} 7. Ba4 {[%clk 0:02:52]}  b5 {[%clk 0:02:41]} 8. Bb3 {[%clk 0:02:50]}  Na5 {[%clk 0:02:39]} 9. Bd5 {[%clk 0:02:48]}  Ra7 {[%clk 0:02:23]} 10. a3 {[%clk 0:02:47]}  Nf6 {[%clk 0:02:18]} 11. Nc3 {[%clk 0:02:44]}  Nxd5 {[%clk 0:02:14]} 12. Nxd5 {[%clk 0:02:44]}  e6 {[%clk 0:02:00]} 13. Nc3 {[%clk 0:02:43]}  d5 {[%clk 0:01:50]} 14. e5 {[%clk 0:02:39]}  O-O {[%clk 0:01:48]} 15. h4 {[%clk 0:02:38]}  f6 {[%clk 0:01:44]} 16. exf6 {[%clk 0:02:38]}  Qxf6 {[%clk 0:01:45]} 17. Bg5 {[%clk 0:02:32]}  Qf5 {[%clk 0:01:42]} 18. O-O {[%clk 0:02:30]}  h6 {[%clk 0:01:33]} 19. Be3 {[%clk 0:02:29]}  Nc4 {[%clk 0:01:33]} 20. Qe2 {[%clk 0:02:29]}  Nxe3 {[%clk 0:01:33]} 21. Qxe3 {[%clk 0:02:29]}  Raf7 {[%clk 0:01:32]} 22. Rae1 {[%clk 0:02:27]}  Qg4 {[%clk 0:01:27]} 23. Ne5 {[%clk 0:02:22]}  Bxe5 {[%clk 0:01:27]} 24. Qxe5 {[%clk 0:02:23]}  Qxh4 {[%clk 0:01:25]} 25. f3 {[%clk 0:02:22]}  Rf5 {[%clk 0:01:24]} 26. Qe3 {[%clk 0:02:19]}  Rh5 {[%clk 0:01:24]} 27. Ne2 {[%clk 0:02:19]}  Rff5 {[%clk 0:01:18]} 28. Rc1 {[%clk 0:02:15]}  Bd7 {[%clk 0:01:09]} 29. f4 {[%clk 0:02:08]}  Qh2+ {[%clk 0:01:07]} 30. Kf2 {[%clk 0:02:07]}  Rh4 {[%clk 0:00:58]} 31. Ke1 {[%clk 0:01:36]}  Qxg2 {[%clk 0:00:58]} 32. Rg1 {[%clk 0:01:35]}  Rh1 {[%clk 0:00:58]} 33. Kd2 {[%clk 0:01:35]}  Rxg1 {[%clk 0:00:44]} 34. Rxg1 {[%clk 0:01:36]}  Qe4 {[%clk 0:00:44]} 35. Rxg6+ {[%clk 0:01:33]}  Kf7 {[%clk 0:00:45]} 36. Qg3 {[%clk 0:01:24]}  Rg5 {[%clk 0:00:24]} 37. Rxg5 {[%clk 0:01:18]}  hxg5 {[%clk 0:00:25]} 38. fxg5 {[%clk 0:01:11]}  Kg6 {[%clk 0:00:15]} 39. Qd6 {[%clk 0:01:05]}  Be8 {[%clk 0:00:13]} 40. Qe7 {[%clk 0:01:05]}  Bc6 {[%clk 0:00:10]} 41. Qf6+ {[%clk 0:01:04]}  Kh5 {[%clk 0:00:10]} 42. Ng3+ {[%clk 0:01:02]} 1-0


[Site "https://www.chess.com"]

[Event "Titled Tuesday Blitz August 09 Early 2022"]
[White "Veiga, Jose Francisco R P Neves"]
[Black "Malek, Jan"]
[WhiteFideId "1930087"]
[BlackFideId "21864080"]
[WhiteElo "2273"]
[BlackElo "2143"]
[Result "1-0"]
[Round "07"]
[TimeControl "180+1"]
[Date "2022.08.09"]
[WhiteClock "0:00:07"]
[BlackClock "0:00:02"]

1. Nf3 {[%clk 0:03:00]}  d5 {[%clk 0:02:58]} 2. c4 {[%clk 0:03:01]}  d4 {[%clk 0:02:58]} 3. g3 {[%clk 0:03:01]}  c5 {[%clk 0:02:58]} 4. Bg2 {[%clk 0:03:02]}  Nc6 {[%clk 0:02:58]} 5. O-O {[%clk 0:03:03]}  e5 {[%clk 0:02:59]} 6. d3 {[%clk 0:03:04]}  Bd6 {[%clk 0:02:59]} 7. e3 {[%clk 0:03:03]}  h6 {[%clk 0:02:58]} 8. exd4 {[%clk 0:03:04]}  exd4 {[%clk 0:02:59]} 9. Re1+ {[%clk 0:03:01]}  Nge7 {[%clk 0:03:00]} 10. Nbd2 {[%clk 0:03:01]}  b6 {[%clk 0:03:00]} 11. Ne4 {[%clk 0:03:02]}  Bc7 {[%clk 0:03:01]} 12. a3 {[%clk 0:02:36]}  a5 {[%clk 0:02:59]} 13. Rb1 {[%clk 0:02:36]}  O-O {[%clk 0:02:58]} 14. Ned2 {[%clk 0:02:05]}  Bf5 {[%clk 0:02:57]} 15. Bf1 {[%clk 0:02:02]}  Qd7 {[%clk 0:02:54]} 16. Qa4 {[%clk 0:01:54]}  Rfe8 {[%clk 0:02:49]} 17. Qb5 {[%clk 0:01:46]}  a4 {[%clk 0:02:48]} 18. b4 {[%clk 0:01:43]}  Qd6 {[%clk 0:02:02]} 19. Ne4 {[%clk 0:01:38]}  Bxe4 {[%clk 0:02:02]} 20. Rxe4 {[%clk 0:01:37]}  g5 {[%clk 0:01:48]} 21. Bg2 {[%clk 0:01:22]}  Reb8 {[%clk 0:01:37]} 22. h4 {[%clk 0:01:05]}  f6 {[%clk 0:01:13]} 23. Bh3 {[%clk 0:01:04]}  f5 {[%clk 0:01:12]} 24. Rxe7 {[%clk 0:00:58]}  Nxe7 {[%clk 0:01:11]} 25. hxg5 {[%clk 0:00:57]}  Qe6 {[%clk 0:00:50]} 26. Bd2 {[%clk 0:00:43]}  Bd6 {[%clk 0:00:30]} 27. Re1 {[%clk 0:00:42]}  Qc8 {[%clk 0:00:31]} 28. Bf4 {[%clk 0:00:16]}  Qc7 {[%clk 0:00:25]} 29. Bxd6 {[%clk 0:00:14]}  Qxd6 {[%clk 0:00:26]} 30. gxh6 {[%clk 0:00:12]}  Ra7 {[%clk 0:00:07]} 31. Bg2 {[%clk 0:00:12]}  Rc8 {[%clk 0:00:04]} 32. Ne5 {[%clk 0:00:12]}  Qxh6 {[%clk 0:00:03]} 33. Nd7 {[%clk 0:00:09]}  Qd6 {[%clk 0:00:02]} 34. Nxb6 {[%clk 0:00:09]}  Rb8 {[%clk 0:00:03]} 35. bxc5 {[%clk 0:00:09]}  Qc7 {[%clk 0:00:03]} 36. Qb2 {[%clk 0:00:05]}  f4 {[%clk 0:00:04]} 37. Qxd4 {[%clk 0:00:05]}  fxg3 {[%clk 0:00:03]} 38. Qg4+ {[%clk 0:00:06]}  Kf8 {[%clk 0:00:03]} 39. Qxg3 {[%clk 0:00:06]}  Qxc5 {[%clk 0:00:01]} 40. Qxb8+ {[%clk 0:00:06]}  Kf7 {[%clk 0:00:01]} 41. Qxa7 {[%clk 0:00:07]}  Qd4 {[%clk 0:00:02]} 42. Qxe7+ {[%clk 0:00:07]}  Kg6 {[%clk 0:00:02]} 43. Qe4+ {[%clk 0:00:07]} 1-0


[Site "https://www.chess.com"]

[Event "Titled Tuesday Blitz August 09 Early 2022"]
[White "Vovk, Orest"]
[Black "Azarov, Sergei"]
[WhiteFideId "14113490"]
[BlackFideId "13501470"]
[WhiteElo "2203"]
[BlackElo "2494"]
[Result "1-0"]
[Round "07"]
[TimeControl "180+1"]
[Date "2022.08.09"]
[WhiteClock "0:00:12"]
[BlackClock "0:00:08"]

1. h4 {[%clk 0:02:59]}  a5 {[%clk 0:02:51]} 2. h5 {[%clk 0:02:58]}  a4 {[%clk 0:02:51]} 3. a3 {[%clk 0:02:58]}  Ra5 {[%clk 0:02:48]} 4. d4 {[%clk 0:02:53]}  f5 {[%clk 0:02:44]} 5. Bd2 {[%clk 0:02:47]}  Ra8 {[%clk 0:02:41]} 6. h6 {[%clk 0:02:42]}  g6 {[%clk 0:02:38]} 7. Nc3 {[%clk 0:02:36]}  Nf6 {[%clk 0:02:37]} 8. Nf3 {[%clk 0:02:30]}  d5 {[%clk 0:02:33]} 9. Ne5 {[%clk 0:02:29]}  Nbd7 {[%clk 0:02:28]} 10. Bf4 {[%clk 0:02:26]}  c6 {[%clk 0:02:19]} 11. e3 {[%clk 0:02:25]}  e6 {[%clk 0:02:17]} 12. Be2 {[%clk 0:02:22]}  Nxe5 {[%clk 0:02:06]} 13. Bxe5 {[%clk 0:02:20]}  Bd6 {[%clk 0:02:07]} 14. f4 {[%clk 0:02:16]}  O-O {[%clk 0:02:04]} 15. g4 {[%clk 0:02:13]}  c5 {[%clk 0:01:33]} 16. gxf5 {[%clk 0:01:56]}  exf5 {[%clk 0:01:33]} 17. dxc5 {[%clk 0:01:56]}  Bxc5 {[%clk 0:01:30]} 18. Bxf6 {[%clk 0:01:53]}  Rxf6 {[%clk 0:01:27]} 19. Qxd5+ {[%clk 0:01:53]}  Qxd5 {[%clk 0:01:23]} 20. Nxd5 {[%clk 0:01:54]}  Rd6 {[%clk 0:01:21]} 21. O-O-O {[%clk 0:01:28]}  Kf7 {[%clk 0:01:15]} 22. Bf3 {[%clk 0:01:23]}  Be6 {[%clk 0:01:11]} 23. Rd3 {[%clk 0:00:57]}  Rad8 {[%clk 0:01:07]} 24. Rhd1 {[%clk 0:00:57]}  b6 {[%clk 0:00:55]} 25. R1d2 {[%clk 0:00:47]}  R6d7 {[%clk 0:00:51]} 26. Kd1 {[%clk 0:00:44]}  b5 {[%clk 0:00:32]} 27. Ke2 {[%clk 0:00:42]}  Bf8 {[%clk 0:00:31]} 28. Nb6 {[%clk 0:00:32]}  Rxd3 {[%clk 0:00:25]} 29. Rxd3 {[%clk 0:00:32]}  Rxd3 {[%clk 0:00:20]} 30. cxd3 {[%clk 0:00:31]}  Bxh6 {[%clk 0:00:16]} 31. Bc6 {[%clk 0:00:31]}  Bg7 {[%clk 0:00:15]} 32. d4 {[%clk 0:00:26]}  h6 {[%clk 0:00:14]} 33. Bxb5 {[%clk 0:00:24]}  g5 {[%clk 0:00:15]} 34. fxg5 {[%clk 0:00:23]}  hxg5 {[%clk 0:00:15]} 35. Nxa4 {[%clk 0:00:23]}  f4 {[%clk 0:00:13]} 36. Nc5 {[%clk 0:00:21]}  Bg4+ {[%clk 0:00:11]} 37. Kf2 {[%clk 0:00:21]}  fxe3+ {[%clk 0:00:10]} 38. Kxe3 {[%clk 0:00:21]}  Bf5 {[%clk 0:00:11]} 39. Bd3 {[%clk 0:00:20]}  Bc8 {[%clk 0:00:10]} 40. Ne4 {[%clk 0:00:19]}  Bh6 {[%clk 0:00:10]} 41. Nd6+ {[%clk 0:00:19]}  Ke6 {[%clk 0:00:10]} 42. Nxc8 {[%clk 0:00:20]}  g4+ {[%clk 0:00:11]} 43. Ke4 {[%clk 0:00:19]}  g3 {[%clk 0:00:11]} 44. Bf1 {[%clk 0:00:19]}  Bc1 {[%clk 0:00:10]} 45. a4 {[%clk 0:00:19]}  Bxb2 {[%clk 0:00:10]} 46. a5 {[%clk 0:00:19]}  Kd7 {[%clk 0:00:10]} 47. Nb6+ {[%clk 0:00:18]}  Kc6 {[%clk 0:00:10]} 48. Nc4 {[%clk 0:00:19]}  Bc3 {[%clk 0:00:10]} 49. d5+ {[%clk 0:00:19]}  Kb5 {[%clk 0:00:10]} 50. d6 {[%clk 0:00:15]}  Kc6 {[%clk 0:00:10]} 51. a6 {[%clk 0:00:14]}  Bf6 {[%clk 0:00:10]} 52. Kf5 {[%clk 0:00:12]}  Bd8 {[%clk 0:00:10]} 53. Bg2+ {[%clk 0:00:12]}  Kb5 {[%clk 0:00:08]} 54. a7 {[%clk 0:00:12]}  Kxc4 {[%clk 0:00:08]} 55. a8=Q {[%clk 0:00:12]} 1-0


[Site "https://www.chess.com"]

[Event "Titled Tuesday Blitz August 09 Early 2022"]
[White "White, John S."]
[Black "Martinez, Shawn"]
[WhiteFideId "2502348"]
[BlackFideId "2039770"]
[WhiteElo "2162"]
[BlackElo "2174"]
[Result "0-1"]
[Round "07"]
[TimeControl "180+1"]
[Date "2022.08.09"]
[WhiteClock "0:00:01"]
[BlackClock "0:00:32"]

1. e4 {[%clk 0:02:57]}  c5 {[%clk 0:02:59]} 2. Nf3 {[%clk 0:02:56]}  e6 {[%clk 0:02:59]} 3. d4 {[%clk 0:02:55]}  cxd4 {[%clk 0:03:00]} 4. Nxd4 {[%clk 0:02:54]}  a6 {[%clk 0:02:59]} 5. Nc3 {[%clk 0:02:50]}  Bb4 {[%clk 0:02:59]} 6. Bd3 {[%clk 0:02:46]}  d6 {[%clk 0:02:57]} 7. Be3 {[%clk 0:02:42]}  Nf6 {[%clk 0:02:57]} 8. O-O {[%clk 0:02:40]}  Bxc3 {[%clk 0:02:55]} 9. bxc3 {[%clk 0:02:39]}  e5 {[%clk 0:02:55]} 10. Nb3 {[%clk 0:02:33]}  O-O {[%clk 0:02:53]} 11. f3 {[%clk 0:02:31]}  Be6 {[%clk 0:02:51]} 12. c4 {[%clk 0:02:29]}  Nbd7 {[%clk 0:02:50]} 13. c5 {[%clk 0:02:22]}  Nxc5 {[%clk 0:02:29]} 14. Nxc5 {[%clk 0:02:20]}  dxc5 {[%clk 0:02:18]} 15. Bxc5 {[%clk 0:02:19]}  Re8 {[%clk 0:02:17]} 16. Qd2 {[%clk 0:02:11]}  Rc8 {[%clk 0:02:08]} 17. Be3 {[%clk 0:02:08]}  Qc7 {[%clk 0:02:05]} 18. Qb4 {[%clk 0:02:04]}  Nd7 {[%clk 0:01:59]} 19. Rfd1 {[%clk 0:02:02]}  Nc5 {[%clk 0:01:53]} 20. Be2 {[%clk 0:01:46]}  b5 {[%clk 0:01:45]} 21. Kh1 {[%clk 0:01:26]}  Na4 {[%clk 0:01:42]} 22. c4 {[%clk 0:01:14]}  Bxc4 {[%clk 0:01:35]} 23. Rdc1 {[%clk 0:01:06]}  Bxe2 {[%clk 0:01:00]} 24. Rxc7 {[%clk 0:01:05]}  Rxc7 {[%clk 0:01:01]} 25. Qa5 {[%clk 0:01:00]}  Rc6 {[%clk 0:00:58]} 26. h3 {[%clk 0:00:55]}  h6 {[%clk 0:00:57]} 27. Re1 {[%clk 0:00:47]}  Bc4 {[%clk 0:00:55]} 28. a3 {[%clk 0:00:42]}  Rec8 {[%clk 0:00:53]} 29. Rc1 {[%clk 0:00:37]}  Be6 {[%clk 0:00:47]} 30. Rxc6 {[%clk 0:00:30]}  Rxc6 {[%clk 0:00:48]} 31. Qd8+ {[%clk 0:00:30]}  Kh7 {[%clk 0:00:47]} 32. Qa8 {[%clk 0:00:25]}  Rc3 {[%clk 0:00:46]} 33. Bf2 {[%clk 0:00:18]}  Rxa3 {[%clk 0:00:42]} 34. Qxa6 {[%clk 0:00:18]}  b4 {[%clk 0:00:41]} 35. Kh2 {[%clk 0:00:12]}  b3 {[%clk 0:00:41]} 36. Bc5 {[%clk 0:00:10]}  Ra2 {[%clk 0:00:34]} 37. Qb5 {[%clk 0:00:07]}  b2 {[%clk 0:00:33]} 38. Bd6 {[%clk 0:00:04]}  Nc3 {[%clk 0:00:32]} 39. Bxe5 {[%clk 0:00:02]}  Nxb5 {[%clk 0:00:31]} 40. Bxb2 {[%clk 0:00:01]}  Rxb2 {[%clk 0:00:32]} 0-1


[Site "https://www.chess.com"]